bitfinex-derivatives/quotes_SOLF0:USTF0_20241226
["timestamp","ask_amount","ask_price","bid_price","bid_amount"]
[1735239761073,2.6437,189.29,189.26,8.88491194]
[1735239761276,6.24091194,189.33,189.27,3.14]
[1735239761677,2.6434,189.31,189.28,2.6437]
[1735239762274,2.6433,189.32,189.29,2.6436]
[1735239762481,6.24091194,189.35,189.27,3.14]
[1735239762777,6.24091194,189.35,189.27,9.38091194]
[1735239763579,2.6432,189.32,189.29,2.6436]
[1735239767182,6.24091194,189.31,189.25,1.5942]
[1735239767485,6.24091194,189.31,189.25,3.14]
[1735239767985,6.24091194,189.33,189.25,9.38091194]
[1735239768186,6.24091194,189.33,189.27,6.24091194]
[1735239769479,2.6434,189.31,189.28,2.6437]
[1735239774983,2.6435,189.3,189.26,2.644]
[1735239775187,6.24091194,189.31,189.27,3.14]
[1735239775683,2.6437,189.29,189.27,3.14]
[1735239776280,2.644,189.27,189.24,2.6443]
[1735239776485,6.24091194,189.29,189.25,3.14]
[1735239776685,6.24091194,189.27,189.24,3.14]
[1735239777383,6.24091194,189.25,189.2,7.29773168]
[1735239777582,6.24091194,189.25,189.21,3.14]
[1735239778491,2.6448,189.21,189.17,9.94303168]
[1735239778693,6.24091194,189.21,189.17,7.29773168]
[1735239778892,2.6451,189.19,189.17,3.14]
[1735239779585,6.24091194,189.19,189.13,7.29773168]
[1735239779792,6.24091194,189.19,189.14,3.14]
[1735239780193,6.24091194,189.21,189.14,3.14]
[1735239781193,8.88571194,189.21,189.16,2.6454]
[1735239782594,6.24091194,189.21,189.14,3.14]
[1735239782996,6.24091194,189.19,189.14,3.14]
[1735239784200,6.24091194,189.17,189.09,54.98]
[1735239784406,6.24091194,189.15,189.1,3.14]
[1735239784998,1.6731,189.25,189.1,9.38091194]
[1735239785192,6.24091194,189.17,189.1,9.38091194]
[1735239785594,6.24091194,189.17,189.1,3.14]
[1735239786099,2.6458,189.14,189.1,3.14]
[1735239786602,6.24091194,189.17,189.1,3.14]
[1735239787503,2.6456,189.15,189.1,5.7863]
[1735239787799,8.88651194,189.15,189.1,5.7863]
[1735239789004,2.6458,189.14,189.1,3.14]
[1735239789396,6.24091194,189.13,189.1,3.14]
[1735239789600,8.88681194,189.13,189.1,3.14]
[1735239790202,8.88681194,189.13,189.09,57.6264]
[1735239790506,8.88681194,189.13,189.1,3.14]
[1735239791101,6.24091194,189.13,189.1,3.14]
[1735239791309,2.6466,189.09,189.05,3.14]
[1735239791500,2.6466,189.09,189.06,3.14]
[1735239791704,6.24091194,189.11,189.06,3.14]
[1735239792107,8.88721194,189.11,189.06,5.7868]
[1735239793002,2.6464,189.1,189.05,2.647]
[1735239793206,6.24091194,189.09,189.07,3.14]
[1735239793408,6.24091194,189.09,189.04,3.14]
[1735239794207,6.24091194,189.09,189.01,6.24091194]
[1735239794506,2.6468,189.07,189.03,2.6471]
[1735239794706,6.24091194,189.07,189.02,3.14]
[1735239795107,2.647,189.06,189.02,5.7874]
[1735239796010,6.24091194,189.05,189.0,3.14]
[1735239796211,6.24091194,189.03,188.97,6.24091194]
[1735239796403,2.6477,189.0,188.96,2.6481]
[1735239796607,2.6477,189.0,188.97,3.14]
[1735239796806,6.24091194,189.03,188.97,3.14]
[1735239797106,6.24091194,188.99,188.95,3.14]
[1735239798008,2.6482,188.97,188.95,3.14]
[1735239798905,2.6482,188.97,188.94,3.16]
[1735239799107,2.6482,188.97,188.92,57.6487]
[1735239799311,8.88911194,188.97,188.93,3.16]
[1735239799707,1.6542,189.06,188.93,9.40091194]
[1735239799907,6.24091194,189.01,188.93,9.40091194]
[1735239801511,1.6542,189.06,188.93,9.40091194]
[1735239801512,8.88881194,188.99,188.95,2.6483]
[1735239801803,8.88881194,188.99,188.93,9.40091194]
[1735239802909,8.88881194,188.99,188.94,2.6485]
[1735239803913,2.6477,189.0,188.95,2.6483]
[1735239805306,6.24091194,189.01,188.95,2.6483]
[1735239805307,2.6479,188.99,188.95,2.6483]
[1735239806209,6.24091194,188.99,188.93,9.40091194]
[1735239806418,2.6481,188.97,188.93,12.04951194]
[1735239807110,6.24091194,188.99,188.92,57.6488]
[1735239807311,6.24091194,188.97,188.93,3.14]
[1735239807612,6.24091194,188.97,188.94,3.14]
[1735239807804,2.6484,188.96,188.94,3.14]
[1735239808012,6.24091194,188.97,188.94,3.14]
[1735239808914,2.6484,188.96,188.94,3.14]
[1735239813014,2.6484,188.95,188.94,3.14]
[1735239813217,6.24091194,188.95,188.83,29.19092674]
[1735239813521,6.24091194,188.91,188.84,3.16]
[1735239813817,1.5675,189.04,188.83,32.50472674]
[1735239813818,6.24091194,188.89,188.83,32.50472674]
[1735239814016,6.24091194,188.89,188.84,3.16]
[1735239814222,2.6494,188.88,188.84,3.16]
[1735239814514,6.24091194,188.91,188.84,3.16]
[1735239814717,6.24091194,188.91,188.85,6.24091194]
[1735239815122,8.88991194,188.91,188.86,2.6495]
[1735239815323,8.88991194,188.91,188.85,6.24091194]
[1735239815618,8.88991194,188.91,188.84,3.16]
[1735239815816,8.88991194,188.91,188.86,2.6495]
[1735239816919,8.88991194,188.91,188.85,6.24091194]
[1735239817118,8.88991194,188.91,188.87,2.6495]
[1735239817717,2.649,188.91,188.87,2.6495]
[1735239818517,6.24091194,188.95,188.87,6.24091194]
[1735239819022,2.6487,188.94,188.87,6.24091194]
[1735239819916,2.6487,188.93,188.89,2.6491]
[1735239820121,2.6487,188.93,188.9,3.16]
[1735239820318,6.24091194,188.95,188.9,3.16]
[1735239821424,2.6488,188.93,188.9,3.16]
[1735239823012,6.24091194,188.95,188.9,3.16]
[1735239823214,2.649,188.91,188.9,3.16]
[1735239825224,2.6488,188.93,188.9,5.8091]
[1735239825723,2.6488,188.93,188.9,3.16]
[1735239826121,2.6489,188.92,188.9,3.16]
[1735239833128,6.24091194,188.94,188.9,3.16]
[1735239833325,2.6488,188.92,188.9,3.16]
[1735239835029,2.6488,188.93,188.9,5.809]
[1735239835232,6.24091194,188.94,188.9,5.809]
[1735239835930,2.6487,188.93,188.9,5.809]
[1735239836331,6.24091194,188.94,188.9,5.809]
[1735239837535,2.6487,188.93,188.9,5.809]
[1735239838521,2.6487,188.93,188.9,3.16]
[1735239838729,6.24091194,188.92,188.9,3.16]
[1735239838931,2.649,188.91,188.9,3.16]
[1735239840331,8.88981194,188.92,188.9,3.16]
[1735239840631,6.24091194,188.94,188.9,3.16]
[1735239841432,2.6487,188.93,188.9,5.8091]
[1735239841634,6.24091194,188.94,188.9,3.16]
[1735239843531,3.1539,189.0,188.9,3.16]
[1735239843736,6.24091194,189.0,188.92,6.24091194]
[1735239843930,2.6479,188.99,188.96,2.6482]
[1735239844127,2.6479,188.99,188.96,5.8082]
[1735239844332,6.24091194,189.0,188.96,3.16]
[1735239845236,2.6479,188.99,188.96,3.16]
[1735239845532,6.24091194,189.0,188.96,3.16]
[1735239845726,1.5698,189.05,188.96,9.40091194]
[1735239845933,6.24091194,189.04,188.96,9.40091194]
[1735239846236,6.24091194,189.04,188.98,6.24091194]
[1735239846436,6.24091194,189.04,188.96,9.40091194]
[1735239847530,2.6474,189.02,188.98,2.6479]
[1735239848031,8.88811194,189.04,189.0,2.6477]
[1735239848237,6.24091194,189.04,189.01,3.14]
[1735239849239,8.88821194,189.04,189.01,3.14]
[1735239849429,6.24091194,189.04,188.96,6.24091194]
[1735239849627,6.24091194,189.02,188.97,3.14]
[1735239849936,2.6477,189.0,188.97,3.14]
[1735239851131,13.22918368,189.11,188.97,3.14]
[1735239851330,0.87711999,189.1,188.99,6.24091194]
[1735239851533,6.24091194,189.07,188.99,6.24091194]
[1735239851838,6.24091194,189.03,188.97,3.14]
[1735239852229,6.24091194,189.01,188.97,3.14]
[1735239852829,2.6477,189.0,188.97,3.14]
[1735239854043,2.6479,188.99,188.97,3.14]
[1735239854241,6.24091194,189.01,188.97,3.14]
[1735239855435,2.6478,189.0,188.97,3.14]
[1735239855640,6.24091194,189.01,188.97,3.14]
[1735239856140,2.6477,189.0,188.97,3.14]
[1735239856745,2.6476,189.01,188.97,3.14]
[1735239857142,6.24091194,189.03,188.97,3.14]
[1735239857441,8.88821194,189.03,188.99,2.6478]
[1735239858336,6.24091194,189.05,188.97,9.38091194]
[1735239858541,6.24091194,189.05,189.0,2.6476]
[1735239860646,2.6472,189.04,189.0,2.6476]
[1735239864450,2.647,189.06,189.02,2.6473]
[1735239864652,1.5352,189.11,189.03,3.14]
[1735239864853,6.24091194,189.09,189.03,3.14]
[1735239865054,2.6465,189.09,189.05,2.647]
[1735239865448,7.77611194,189.11,189.05,2.647]
[1735239865654,2.6466,189.08,189.05,2.647]
[1735239866260,2.6466,189.08,189.04,2.6471]
[1735239872570,2.6467,189.07,189.04,2.6471]
[1735239872871,6.24091194,189.1,189.04,2.6471]
[1735239873070,2.6466,189.08,189.04,2.6471]
[1735239873371,2.6466,189.08,189.05,2.647]
[1735239881476,2.6466,189.08,189.06,2.6469]
[1735239882270,2.6466,189.08,189.03,3.14]
[1735239882479,2.6466,189.08,189.05,2.647]
[1735239882774,6.24091194,189.08,188.99,1.5842]
[1735239882969,3.1535,189.12,189.03,2.6473]
[1735239882970,6.24091194,189.06,189.03,2.6473]
[1735239883872,2.6468,189.07,189.03,2.6473]
[1735239884072,2.6468,189.07,189.04,2.647]
[1735239886276,6.24091194,189.08,189.04,2.647]
[1735239886482,8.88751194,189.08,189.04,2.647]
[1735239887179,2.6467,189.07,189.04,2.647]
[1735239888681,6.24091194,189.06,189.04,2.647]
[1735239890283,6.24091194,189.06,189.0,9.38091194]
[1735239890581,6.24091194,189.06,189.03,2.6472]
[1735239895679,2.6465,189.09,189.05,2.6469]
[1735239895886,2.6465,189.09,189.05,3.14]
[1735239897483,6.24091194,189.08,189.05,3.14]
[1735239898481,8.88761194,189.08,189.05,3.14]
[1735239899083,8.88761194,189.08,189.05,5.787]
[1735239900189,6.24091194,189.08,189.05,3.14]
[1735239900389,2.6468,189.07,189.05,3.14]
[1735239902286,2.6468,189.07,189.04,3.14]
[1735239905092,6.24091194,189.08,189.04,3.14]
[1735239905395,6.24091194,189.06,189.03,3.14]
[1735239905789,2.6471,189.05,189.03,3.14]
[1735239906297,2.6471,189.05,189.02,2.6474]
[1735239906594,2.6471,189.05,189.03,3.14]
[1735239908796,8.88811194,189.04,188.99,2.6478]
[1735239908990,6.24091194,189.02,188.95,29.19092674]
[1735239909197,6.24091194,189.02,188.99,3.14]
[1735239909695,6.24091194,189.0,188.97,3.14]
[1735239909890,6.24091194,189.0,188.95,29.19092674]
[1735239910195,2.648,188.98,188.96,3.14]
[1735239910399,2.648,188.98,188.95,3.14]
[1735239911196,2.6481,188.97,188.94,2.6484]
[1735239911399,6.24091194,188.96,188.89,29.19092674]
[1735239911594,6.24091194,188.92,188.89,29.19092674]
[1735239911897,2.649,188.91,188.9,3.14]
[1735239915395,2.6495,188.87,188.82,2.6502]
[1735239915600,6.24091194,188.88,188.81,3.2114]
[1735239915898,6.24091194,188.88,188.82,3.14]
[1735239916901,2.6493,188.89,188.82,9.38091194]
[1735239917499,8.89021194,188.89,188.82,9.38091194]
[1735239917906,6.24091194,188.89,188.82,9.38091194]
[1735239918100,2.6495,188.87,188.82,9.38091194]
[1735239918900,6.24091194,188.89,188.82,12.03111194]
[1735239919204,2.6498,188.86,188.82,3.14]
[1735239920205,6.24091194,188.87,188.82,3.14]
[1735239921107,6.24091194,188.89,188.82,9.38091194]
[1735239921308,6.24091194,188.89,188.82,12.03111194]
[1735239922408,2.6495,188.87,188.82,12.03111194]
[1735239923808,2.6494,188.88,188.83,2.6501]
[1735239926606,2.6492,188.9,188.85,2.6497]
[1735239926911,6.24091194,188.94,188.86,6.24091194]
[1735239927102,2.6488,188.92,188.87,3.14]
[1735239927308,6.24091194,188.96,188.88,6.24091194]
[1735239927505,6.24091194,188.98,188.9,6.24091194]
[1735239927706,2.6482,188.97,188.93,2.6486]
[1735239927907,2.6482,188.97,188.94,3.14]
[1735239928107,6.24091194,189.0,188.94,3.14]
[1735239928308,2.648,188.98,188.94,5.7885]
[1735239930518,2.648,188.98,188.94,3.14]
[1735239930719,2.6482,188.97,188.94,3.14]
[1735239934016,6.24091194,188.99,188.94,3.14]
[1735239934225,1.6265,189.03,188.94,3.14]
[1735239934421,6.24091194,189.0,188.94,3.14]
[1735239934722,1.6318,189.07,188.96,6.24091194]
[1735239935124,2.6473,189.04,188.99,2.6477]
[1735239935330,2.6473,189.04,189.0,3.14]
[1735239935824,6.24091194,189.07,189.0,3.14]
[1735239936027,2.647,189.06,189.01,2.6474]
[1735239936726,2.647,189.05,189.01,2.6474]
[1735239938524,8.88791194,189.05,189.0,3.14]
[1735239938721,2.6473,189.03,189.0,3.14]
[1735239938920,6.24091194,189.05,189.0,3.14]
[1735239940425,2.6471,189.04,189.0,5.7877]
[1735239946632,2.6471,189.04,189.01,2.6475]
[1735239951939,6.24091194,189.09,189.02,6.24091194]
[1735239952943,8.88741194,189.09,189.05,2.6469]
[1735239953242,6.24091194,189.07,189.05,3.14]
[1735239953442,6.24091194,189.07,189.02,3.14]
[1735239953745,6.24091194,189.03,189.02,3.14]
[1735239954138,8.88831194,189.03,189.02,3.14]
[1735239960738,8.88801194,189.05,189.02,3.14]
[1735239961939,6.24091194,189.05,189.02,3.14]
[1735239963040,6.24091194,189.03,188.91,61.98968788]
[1735239963345,6.24091194,189.0,188.92,10.97611194]
[1735239963643,6.24091194,189.0,188.93,3.14]
[1735239963843,2.6479,188.99,188.96,2.6482]
[1735239964146,6.24091194,189.0,188.93,3.14]
[1735239964339,6.24091194,189.02,188.94,6.24091194]
[1735239964539,2.6477,189.01,188.94,6.24091194]
[1735239964846,1.6173,189.09,188.96,6.24091194]
[1735239965045,2.6473,189.03,189.0,2.6477]
[1735239965243,2.6473,189.03,189.01,3.14]
[1735239967941,6.24091194,189.04,189.01,3.14]
[1735239968139,6.24091194,189.02,188.99,3.14]
[1735239968345,6.24091194,189.0,188.97,3.14]
[1735239968545,6.24091194,189.0,188.96,3.14]
[1735239969255,2.6479,188.99,188.96,3.14]
[1735239969639,6.24091194,189.02,188.96,9.38091194]
[1735239970548,2.6476,189.01,188.98,2.648]
[1735239970741,2.6476,189.01,188.96,9.38091194]
[1735239971638,2.6476,189.01,188.97,2.6481]
[1735239972043,6.24091194,189.02,188.96,3.14]
[1735239972846,6.24091194,188.98,188.95,3.14]
[1735239973244,6.24091194,188.98,188.91,72.41701956]
[1735239973245,2.6484,188.95,188.94,3.14]
[1735239973450,2.6484,188.95,188.91,75.06591956]
[1735239973643,2.6484,188.95,188.94,3.14]
[1735239973841,2.6487,188.94,188.93,3.14]
[1735239974044,6.24091194,188.94,188.92,3.14]
[1735239974442,2.6488,188.93,188.92,3.14]
[1735239975053,8.88951194,188.94,188.92,3.14]
[1735239975648,2.6487,188.93,188.92,3.14]
[1735239976554,2.6486,188.94,188.92,3.14]
[1735239976755,6.24091194,188.96,188.92,3.14]
[1735239977145,2.6487,188.94,188.92,3.14]
[1735239978352,6.24091194,188.94,188.89,3.14]
[1735239978551,6.24091194,188.91,188.89,3.14]
[1735239979357,2.6493,188.89,188.87,3.14]
[1735239979551,6.24091194,188.91,188.87,3.14]
[1735239979755,6.24091194,188.91,188.88,3.14]
[1735239980164,2.6492,188.9,188.88,3.14]
[1735239980357,6.24091194,188.91,188.88,3.14]
[1735239980758,2.6491,188.9,188.88,3.14]
[1735239980960,6.24091194,188.91,188.88,3.14]
[1735239981557,2.6491,188.9,188.88,3.14]
[1735239981960,2.6485,188.95,188.88,9.38091194]
[1735239982263,6.24091194,188.99,188.92,6.24091194]
[1735239982459,6.24091194,188.99,188.93,3.14]
[1735239983058,2.6481,188.97,188.93,5.7886]
[1735239984060,6.24091194,188.97,188.93,3.14]
[1735239984267,6.24091194,188.95,188.93,3.14]
[1735239984865,2.6487,188.94,188.9,2.649]
[1735239985066,6.24091194,188.93,188.9,3.14]
[1735239985267,6.24091194,188.91,188.9,3.14]
[1735239986472,8.88991194,188.91,188.9,3.14]
[1735239986865,6.24091194,188.91,188.83,1.6663]
[1735239987065,2.6497,188.86,188.84,3.14]
[1735239987270,6.24091194,188.86,188.77,1.6663]
[1735239987573,2.6501,188.83,188.82,3.14]
[1735239989277,6.24091194,188.86,188.82,3.14]
[1735239989573,3.14,188.97,188.82,9.38091194]
[1735239989574,6.24091194,188.88,188.82,9.38091194]
[1735239989768,8.89031194,188.88,188.82,9.38091194]
[1735239990076,6.24091194,188.88,188.82,3.14]
[1735239990271,9.80011754,188.9,188.82,3.14]
[1735239990673,9.80011754,188.9,188.78,55.06]
[1735239990875,9.80011754,188.9,188.79,3.14]
[1735239991271,2.6497,188.86,188.82,2.6502]
[1735239991476,2.6497,188.86,188.79,3.14]
[1735239991875,2.6497,188.86,188.82,2.6502]
[1735239992779,9.80011754,188.9,188.79,3.14]
[1735239993080,2.6494,188.88,188.84,2.6499]
[1735239993277,2.6494,188.88,188.85,3.14]
[1735239997183,2.6497,188.86,188.84,3.14]
[1735239997482,9.80011754,188.9,188.84,3.14]
[1735239997782,9.80011754,188.87,188.83,3.14]
[1735239998187,2.6499,188.84,188.83,3.14]
[1735239998376,9.80011754,188.87,188.78,57.7108]
[1735239998581,9.80011754,188.84,188.77,1.6663]
[1735239998781,2.6506,188.79,188.78,3.14]
[1735239999787,9.80011754,188.84,188.78,3.14]
[1735240000284,2.6502,188.83,188.78,3.14]
[1735240000484,9.80011754,188.84,188.78,3.14]
[1735240000878,2.6506,188.79,188.78,3.14]
[1735240001078,2.6506,188.79,188.75,2.6511]
[1735240001389,2.6506,188.79,188.76,3.14]
[1735240001884,1.5757,188.89,188.72,1.5454]
[1735240001885,9.80011754,188.81,188.72,1.5454]
[1735240002086,9.80011754,188.81,188.73,3.14]
[1735240003686,2.651,188.77,188.73,3.14]
[1735240004588,2.6511,188.76,188.73,3.14]
[1735240006089,2.6512,188.75,188.73,3.14]
[1735240007385,2.6512,188.75,188.72,4.6854]
[1735240010188,9.80011754,188.81,188.72,3.14]
[1735240010388,9.80011754,188.75,188.7,3.14]
[1735240010888,9.80011754,188.75,188.67,66.31625168]
[1735240011089,9.80011754,188.75,188.68,3.14]
[1735240011395,2.6519,188.71,188.68,3.14]
[1735240013088,9.80011754,188.75,188.68,3.14]
[1735240013289,2.6519,188.7,188.66,55.1]
[1735240013489,2.6519,188.7,188.67,3.14]
[1735240013888,9.80011754,188.75,188.66,2.6524]
[1735240014093,2.652,188.7,188.67,3.14]
[1735240014290,2.652,188.7,188.66,3.14]
[1735240014291,6.28327737,188.7,188.66,3.14]
[1735240014491,6.28327737,188.68,188.66,3.14]
[1735240014691,8.93557737,188.68,188.66,3.14]
[1735240015292,6.28327737,188.68,188.64,2.6527]
[1735240015588,6.28327737,188.66,188.6,1.6008]
[1735240015788,6.28327737,188.62,188.57,9.95133168]
[1735240015989,6.28327737,188.62,188.56,87.23554216]
[1735240015990,2.6532,188.61,188.58,3.14]
[1735240016395,6.28327737,188.62,188.58,5.7935]
[1735240016691,6.28327737,188.64,188.58,3.14]
[1735240017496,8.93607737,188.64,188.6,2.6532]
[1735240017690,8.93607737,188.64,188.58,3.14]
[1735240017691,6.28327737,188.64,188.58,3.14]
[1735240017990,6.28327737,188.62,188.58,3.14]
[1735240018201,9.82550566,188.65,188.58,3.14]
[1735240019290,2.6529,188.64,188.6,2.6532]
[1735240019486,9.82550566,188.65,188.6,2.6532]
[1735240020291,9.82550566,188.65,188.58,3.14]
[1735240020595,2.6529,188.63,188.59,2.6534]
[1735240020798,9.82550566,188.65,188.58,3.14]
[1735240020996,2.6532,188.62,188.58,5.7936]
[1735240021291,9.82550566,188.68,188.58,3.14]
[1735240021693,2.6527,188.65,188.58,3.14]
[1735240022195,9.82550566,188.68,188.58,3.14]
[1735240022499,9.82550566,188.65,188.58,3.14]
[1735240022697,9.82550566,188.62,188.58,3.14]
[1735240022998,9.82550566,188.62,188.56,3.14]
[1735240023197,9.82550566,188.62,188.51,3.1283]
[1735240023394,9.82550566,188.59,188.52,3.14]
[1735240023893,2.6538,188.57,188.52,5.7944]
[1735240024093,9.82550566,188.59,188.52,3.14]
[1735240024298,2.6538,188.57,188.52,5.7944]
[1735240025198,12.47910566,188.59,188.52,3.14]
[1735240026399,12.47910566,188.59,188.54,2.6541]
[1735240026595,12.47910566,188.59,188.52,3.14]
[1735240026596,9.82550566,188.62,188.52,3.14]
[1735240026800,9.82550566,188.65,188.52,12.96550566]
[1735240027002,9.82550566,188.65,188.53,1.6525]
[1735240027298,2.653,188.63,188.58,2.6535]
[1735240027600,9.82550566,188.62,188.59,3.14]
[1735240027791,2.6537,188.58,188.56,3.14]
[1735240028501,2.6532,188.61,188.57,2.6537]
[1735240029303,2.6535,188.6,188.56,3.14]
[1735240030102,2.6535,188.59,188.56,3.14]
[1735240030694,2.6537,188.57,188.53,2.6543]
[1735240030900,9.82550566,188.59,188.54,3.14]
[1735240031302,9.82550566,188.56,188.44,3.124]
[1735240031502,9.82550566,188.56,188.45,3.14]
[1735240031897,2.6546,188.51,188.44,4.7103]
[1735240032103,9.82550566,188.53,188.45,3.14]
[1735240033906,12.47980566,188.53,188.45,3.14]
[1735240034403,12.47980566,188.53,188.48,2.6549]
[1735240034901,2.6543,188.53,188.45,3.14]
[1735240035904,2.6543,188.53,188.48,2.6549]
[1735240036605,2.6543,188.53,188.49,2.6549]
[1735240040114,2.6543,188.53,188.5,3.14]
[1735240041616,2.6545,188.52,188.5,3.14]
[1735240041808,9.82550566,188.55,188.5,3.14]
[1735240042008,9.82550566,188.55,188.44,4.7103]
[1735240042211,2.6544,188.52,188.47,2.6551]
[1735240042914,2.6546,188.51,188.47,2.6551]
[1735240043117,9.82550566,188.52,188.47,2.6551]
[1735240044314,2.6547,188.5,188.46,5.7953]
[1735240045215,9.82550566,188.49,188.45,3.14]
[1735240045420,9.82550566,188.49,188.44,3.14]
[1735240045730,3.14,188.55,188.44,3.14]
[1735240045917,9.82550566,188.47,188.44,3.14]
[1735240046311,2.6553,188.46,188.44,3.14]
[1735240048514,9.82550566,188.47,188.38,1.6388]
[1735240048720,9.82550566,188.44,188.39,3.14]
[1735240048916,9.82550566,188.44,188.31,58.3818535]
[1735240049223,9.82550566,188.44,188.33,4.8232]
[1735240049423,9.82550566,188.44,188.34,3.14]
[1735240049620,2.6561,188.41,188.36,2.6566]
[1735240050220,2.6559,188.42,188.38,2.6563]
[1735240050420,9.82550566,188.44,188.39,3.14]
[1735240050914,2.6558,188.43,188.4,2.6561]
[1735240051119,2.6558,188.43,188.39,3.14]
[1735240051518,2.6559,188.42,188.39,5.7962]
[1735240051721,9.82550566,188.44,188.39,3.14]
[1735240052819,2.656,188.42,188.36,2.6567]
[1735240053025,9.82550566,188.44,188.38,3.14]
[1735240053415,2.6561,188.4,188.38,3.14]
[1735240053923,9.82550566,188.41,188.36,3.14]
[1735240054720,9.82550566,188.41,188.37,2.6566]
[1735240055529,2.6562,188.4,188.37,3.14]
[1735240055726,9.82550566,188.41,188.37,3.14]
[1735240057125,2.6563,188.39,188.37,3.14]
[1735240057324,9.82550566,188.41,188.37,3.14]
[1735240057924,2.6564,188.39,188.37,3.14]
[1735240058427,9.82550566,188.41,188.34,2.6569]
[1735240058629,9.82550566,188.41,188.35,3.14]
[1735240059431,9.82550566,188.38,188.33,3.14]
[1735240059724,2.6569,188.35,188.33,3.14]
[1735240059931,9.82550566,188.38,188.33,3.14]
[1735240060229,6.30613748,188.36,188.33,3.14]
[1735240060428,6.30613748,188.34,188.33,5.7971]
[1735240062131,2.6568,188.36,188.32,2.6573]
[1735240064125,4.8892,188.49,188.31,12.99405553]
[1735240064328,9.85405553,188.46,188.31,12.99405553]
[1735240065235,2.656,188.42,188.38,2.6563]
[1735240065437,2.656,188.42,188.39,3.14]
[1735240066240,9.85405553,188.46,188.39,5.7963]
[1735240067330,9.85405553,188.46,188.41,2.656]
[1735240067738,2.6553,188.46,188.39,3.14]
[1735240068045,9.85405553,188.49,188.43,2.6556]
[1735240068245,9.85405553,188.49,188.44,3.14]
[1735240069442,12.50895553,188.49,188.44,5.7954]
[1735240070742,9.85405553,188.49,188.44,5.7954]
[1735240070945,2.6551,188.48,188.44,5.7954]
[1735240076838,2.6551,188.48,188.44,3.14]
[1735240077044,2.6551,188.48,188.45,2.6554]
[1735240077438,9.85405553,188.52,188.44,3.14]
[1735240077839,9.85405553,188.55,188.44,3.14]
[1735240078241,9.85405553,188.58,188.46,9.85405553]
[1735240078637,3.2525,188.63,188.46,9.85405553]
[1735240078840,9.85405553,188.6,188.46,9.85405553]
[1735240079045,3.2525,188.63,188.46,9.85405553]
[1735240079342,2.6535,188.59,188.46,9.85405553]
[1735240079549,9.85405553,188.62,188.46,9.85405553]
[1735240080053,2.6535,188.59,188.46,9.85405553]
[1735240080346,9.85405553,188.62,188.46,9.85405553]
[1735240080544,9.85405553,188.62,188.56,2.6539]
[1735240080743,9.85405553,188.62,188.57,3.14]
[1735240081546,3.2525,188.63,188.57,3.14]
[1735240081741,9.85405553,188.62,188.57,3.14]
[1735240082850,12.50715553,188.62,188.57,3.14]
[1735240083150,9.85405553,188.65,188.57,3.14]
[1735240083555,2.6529,188.64,188.59,2.6534]
[1735240083751,9.85405553,188.65,188.59,2.6534]
[1735240084346,9.85405553,188.65,188.61,2.6531]
[1735240084550,9.85405553,188.68,188.57,3.14]
[1735240084750,9.85405553,188.68,188.58,3.1304]
[1735240084954,9.85405553,188.68,188.61,2.6532]
[1735240085256,9.85405553,188.68,188.62,3.14]
[1735240086952,9.85405553,188.68,188.62,5.793]
[1735240089160,9.85405553,188.68,188.63,2.6528]
[1735240089355,9.85405553,188.68,188.62,3.14]
[1735240090053,9.85405553,188.68,188.58,3.1304]
[1735240090254,9.85405553,188.68,188.59,3.14]
[1735240090655,9.85405553,188.68,188.59,5.7934]
[1735240091259,9.85405553,188.68,188.6,2.6533]
[1735240092857,9.85405553,188.68,188.59,3.14]
[1735240093066,9.85405553,188.68,188.59,5.7934]